Cogmind - Beta 14 @@@ ROGUE MODE // 2025.04.25 @ 21:21:51 Player: Alex Result: Destroyed by G-34 Mercenary with Small Laser Performance ------------- Evolutions (0) 0 Regions Visited (1) 200 Robots Destroyed (6) 30 Value Destroyed (199) 199 Prototype IDs (0) 0 Alien Tech Used (0) 0 Bonus (0) 0 TOTAL SCORE: 429 Bonus ------- None Cogmind --------- Core Integrity 0/250 Matter 268/300 Energy 100/100 System Corruption 0% Temperature Cool (38) Movement Core (150) Ox2 Location -10/Materials Parts ------- > --- POWER (1) -------- (None) > --- PROPULSION (2) --- (None) > --- UTILITY (2) ------ Improved Heat Sink > --- WEAPON (2) ------- Light Cannon Light Cannon > --- INVENTORY (5) ---- Light Treads Aluminum Leg Aluminum Leg Small Storage Unit Peak State ------------ > --- POWER ------------ Light Ion Engine > --- PROPULSION ------- Aluminum Leg Aluminum Leg > --- UTILITY ---------- Improved Heat Sink Structural Scanner > --- WEAPON ----------- Light Cannon Light Cannon > --- INVENTORY -------- Light Treads Aluminum Leg Aluminum Leg Small Storage Unit [Rating: 9] Favorites ----------- Power Ion Engine Engine Ion Engine Propulsion Light Treads Treads Light Treads Leg Aluminum Leg Utility Structural Scanner Device Structural Scanner Storage Small Storage Unit Weapon Medium Laser Energy Gun Medium Laser Ballistic Cannon Light Cannon Special Weapon Mining Laser Build | -11 -10 ------- Run | Yrd Mat Slots Evolved . | . . Power . | . . Propulsion . | . . Utility . | . . Weapon . | . . Parts Attached 14 | 5 9 Power 2 | 1 1 Engine 2 | 1 1 Core . | . . Reactor . | . . Propulsion 4 | 2 2 Treads 2 | 2 . Leg 2 | . 2 Wheel . | . . Hover . | . . Flight . | . . Utility 3 | . 3 Device 2 | . 2 Storage 1 | . 1 Processor . | . . Hackware . | . . Protection . | . . Artifact . | . . Weapon 5 | 2 3 Energy Gun 2 | 2 . Energy Cannon . | . . Ballistic Gun . | . . Ballistic Cannon 2 | . 2 Launcher . | . . Special Weapon 1 | . 1 Impact Weapon . | . . Slashing Weapon . | . . Piercing Weapon . | . . Special Melee Weapon . | . . Unidentified Prototypes . | . . Parts Lost 8 | . 8 Power 2 | . 2 Propulsion 3 | . 3 Utility 1 | . 1 Weapon 2 | . 2 Highest Loss Streak 6 | . 6 To Critical Strikes . | . . Average Slot Usage (%) 82 | . 82 Engine 13 | . 13 Treads 16 | . 16 Leg 11 | . 11 Device 19 | . 19 Energy Gun 14 | . 14 Special Weapon 5 | . 5 Peak Build Rating 9 | 5 9 Average Rating 6 | 4 6 On Entrance 2 | . 5 Naked Turns . | . . Heaviest Build 13 | 9 13 Greatest Support 40 | 40 40 Greatest Overweight (x) . | . . Average Overweight (x) . | . . Largest Inventory Capacity 8 | 5 8 Average Capacity 5 | 5 5 Most Carried 5 | 4 5 Average Carried 3 | 3 3 Final Capacity 5 | 5 5 Final Carried 4 | 4 4 Class Distribution -------------------- 100% | Mutant Dominant Class ---------------- Mutant | -10/Materials Resources | -11 -10 ----------- Run | Yrd Mat Matter Collected 310 | 250 60 Remotely . | . . Salvage Created 306 | 99 207 Parts 12 | 3 9 Haulers Intercepted . | . . Recyclers Shooed . | . . Parts Field Recycled . | . . Retrieved Matter . | . . Parts Self-Destructed . | . . Prevented . | . . Kills | -11 -10 ------- Run | Yrd Mat Combat Hostiles Destroyed 5 | . 5 Guns 4 | . 4 Classes Destroyed 2 | 1 1 Recycler 1 | 1 . Grunt 5 | . 5 Best Kill Streak 2 | 1 2 Combat Bots Only 2 | . 2 Max Kills in Single Turn 1 | 1 1 Gunslinging . | . . Exploded . | . . Melee . | . . Uniques/NPCs Destroyed . | . . Combat | -11 -10 -------- Run | Yrd Mat Hostile Shots Fired 118 | . 118 Missed 30 | . 30 Damage Taken 1089 | . 1089 Core 254 | . 254 Absorbed by Shields . | . . Core Remaining (%) 100 | 100 . Volleys Fired 51 | 6 45 Largest 2 | 2 2 Hottest 150 | 90 150 Shots Fired 61 | 10 51 Gun 48 | 10 38 Cannon 8 | . 8 Launcher . | . . Special 5 | . 5 Kinetic 8 | . 8 Thermal 47 | 4 43 Explosive . | . . Electromagnetic 6 | 6 . Robot Hit Streak 14 | 3 14 Robot Miss Streak 4 | 3 4 Penetration Max . | . . Secondary Targets . | . . Shots Hit Robots 36 | 5 31 Core Hits 13 | 2 11 Critical Kills . | . . Critical Parts Destroyed . | . . Critical Strikes 3 | . 3 Burn 3 | . 3 Melee Attacks . | . . Impact . | . . Slashing . | . . Piercing . | . . Sneak Attacks . | . . Combat Hostiles . | . . Follow-up Attacks . | . . Damage Inflicted 461 | 61 400 Guns 407 | 61 346 Cannons 54 | . 54 Explosions . | . . Melee . | . . Ramming . | . . Kinetic 54 | . 54 Thermal 383 | 37 346 Explosive . | . . Electromagnetic 24 | 24 . Impact . | . . Slashing . | . . Piercing . | . . Highest Corruption . | . . Average Corruption . | . . Corruption Purged . | . . Corruption Blocked . | . . Overload Shots . | . . Overflow Damage . | . . Projectiles . | . . Explosions . | . . Melee . | . . Knockbacks 2 | . 2 Impact . | . . Kinetic 2 | . 2 Secondary . | . . Self-Inflicted Damage . | . . Shots . | . . Rammed . | . . Targets Rammed . | . . Kicked . | . . Crushed . | . . Highest Temperature 394 | 120 394 Average Temperature 150 | 61 169 Received Heat Transfer 630 | . 630 Effects 1 | . 1 Energy Bleed 1 | . 1 Siege Activations . | . . Robots Corrupted . | . . Combat Hostiles . | . . Parts Fried . | . . Impact Corruptions . | . . Robots Melted 1 | . 1 Combat Hostiles 1 | . 1 Parts Melted 2 | . 2 Heat Transferred 1369 | 111 1258 Parts Sabotaged . | . . Parts Stolen . | . . Parts Stripped . | . . Power Chain Reactions . | . . Alert | -11 -10 ------- Run | Yrd Mat Peak Influence 160 | 5 160 Initial 3 | . 3 Average 48 | 1 63 Maximum Alert Level . | . . Low Security (%) 100 | 100 100 Level 1 . | . . Level 2 . | . . Level 3 . | . . Level 4 . | . . Level 5 . | . . High Security . | . . Max Security . | . . Squads Dispatched 2 | . 2 Investigation 1 | . 1 Extermination . | . . Reinforcement 1 | . 1 Assault . | . . Garrison . | . . Intercept . | . . Searches Triggered . | . . Construction Impeded . | . . Haulers Reinforced . | . . Active Scanning Responses . | . . Cargo Convoy Interrupts . | . . Stealth | -11 -10 --------- Run | Yrd Mat Distress Signals 1 | . 1 Communications Jammed . | . . Distress Signals . | . . Times Spotted 11 | . 11 Peak Tracking Total 5 | . 5 Tactical Retreats 2 | . 2 Traps | -11 -10 ------- Run | Yrd Mat Traps Triggered 1 | . 1 Indirectly . | . . Trap Hack Attempts . | . . Triggered . | . . Disarmed . | . . Reprogrammed . | . . Reused . | . . Traps Extracted . | . . Installed . | . . Triggered . | . . Machines | -11 -10 ---------- Run | Yrd Mat Machines Disabled 1 | . 1 Max in Single Turn 1 | . 1 Machines Repaired . | . . Machines Dismantled . | . . Machines Sabotaged . | . . Overloaded Fab Kills . | . . Hacking | -11 -10 --------- Run | Yrd Mat Machines Accessed 3 | . 3 Terminals 2 | . 2 Fabricators . | . . Repair Stations . | . . Recycling Units 1 | . 1 Scanalyzers . | . . Garrison Access . | . . Total Hacks 5 | . 5 Successful 4 | . 4 Failed 1 | . 1 Catastrophic . | . . Database Lockouts . | . . Manual 1 | . 1 Terminals 3 | . 3 Fabricators . | . . Repair Stations . | . . Recycling Units 2 | . 2 Scanalyzers . | . . Garrison Access . | . . Terminal Hacks 3 | . 3 Scanalyzer Index 1 | . 1 Hauler Manifests 1 | . 1 Zone Layout 1 | . 1 Fabricator Hacks . | . . Repair Station Hacks . | . . Recycling Unit Hacks 1 | . 1 Report Inventory 1 | . 1 Scanalyzer . | . . Garrison Access Hacks . | . . Unauthorized Hacks . | . . Terminals . | . . Fabricators . | . . Repair Stations . | . . Recycling Units . | . . Scanalyzers . | . . Garrison Access . | . . Data Cores Recovered . | . . Used . | . . Hacking Detections . | . . Full Trace Events . | . . Feedback Events . | . . Feedback Blocked . | . . Robot Schematics Acquired . | . . Robots Built . | . . Authchips . | . . Time . | . . Total Robot Build Rating . | . . Part Schematics Acquired . | . . Parts Built . | . . Authchips . | . . Time . | . . Total Part Build Rating . | . . Parts Repaired . | . . Time . | . . Parts Recycled . | . . Recycled Matter . | . . Retrieved Matter . | . . Retrieved Components . | . . Parts Scanalyzed . | . . Part Schematics Acquired . | . . Parts Damaged . | . . Bothacking | -11 -10 ------------ Run | Yrd Mat Used RIF Installer . | . . Robots Hacked . | . . Non-combat . | . . Combat . | . . Robot Hacks Applied . | . . Relay Couplers Released . | . . Fabnet Peak Effective % . | . . Robots Rewired . | . . Allies Hacked . | . . Hacks Repelled . | . . Allies | -11 -10 -------- Run | Yrd Mat Total Allies . | . . Largest Group . | . . Highest-Rated Group . | . . Highest-Rated Ally . | . . Total Orders . | . . Ally Attacks . | . . Total Damage . | . . Kills . | . . Allies Corrupted . | . . Allies Melted . | . . Intel | -11 -10 ------- Run | Yrd Mat Robot Analysis Total . | . . Derelict Logs Recovered . | . . Drone Launches . | . . Drone Recoveries . | . . Exploration | -11 -10 ------------- Run | Yrd Mat Turns Passed 556 | 133 423 Spaces Moved 257 | 70 187 Core 5 | 5 . Treads 169 | 65 104 Legs 83 | . 83 Wheels . | . . Hover . | . . Flight . | . . Fastest Speed 50 | 50 120 Average Speed 144 | 152 142 Slowest Speed 160 | 160 160 Overloaded Moves . | . . Propulsion Burnouts . | . . Robots Hopped . | . . Cave-ins Triggered . | . . Exploration Rate (%) 21 | 6 36 Regions Visited 1 Branch Regions . Pre-discovered Areas . | . . Known Exits Taken . | . . Unknown Exits Taken 1 | 1 . Scrap Searched . | . . Spaces Dug 3 | . 3 Terrain Destroyed 4 | . 4 Melee . | . . Projectile 4 | . 4 AOE . | . . Terrain Rammed . | . . Walls Destroyed . | . . Machines Disabled . | . . Actions | -11 -10 --------- Run | Yrd Mat Total 364 | 84 280 Wait 36 | . 36 Move 256 | 69 187 Hop . | . . Pick Up 7 | 4 3 Fast Attach 8 | 5 3 Attach 3 | . 3 Detach . | . . Swap 3 | . 3 Drop . | . . Fire 51 | 6 45 Melee . | . . Ram . | . . Kick . | . . Crush . | . . Escape Stasis . | . . Rewire . | . . Trap . | . . Miscellaneous . | . . Route ------- -11/Scrapyard -10/Materials (discovered 1 exit: [*Min]) History --------- Turn | Location | Event 8 | -11/Scrapyard | Discovered new exit (range 15) 134 | -11/Scrapyard | Entered Materials 302 | -10/Materials | Build established: Mutant 458 | -10/Materials | Core integrity fell below 50% 483 | -10/Materials | Discovered new exit (range 16) 545 | -10/Materials | Core integrity fell below 20% 557 | -10/Materials | Destroyed by G-34 Mercenary with Small Laser Last Messages --------------- K-01 Serf collects debris. Med. Laser destroyed. K-01 Serf cleans the Terminal. K-01 Serf collects debris. K-01 Serf cleans the Terminal. Acquired Lgt. Cannon. K-01 Serf cleans the Terminal. Acquired Lgt. Cannon. O-16 Technician destroyed. Lgt. Ion Engine destroyed. Aluminum Leg destroyed. Structural Scanner destroyed. K-01 Serf collects debris. G-47 Trooper knocked back. K-01 Serf collects debris. Aluminum Leg destroyed. K-01 Serf collects debris. G-47 Trooper knocked back. K-01 Serf destroyed. Critical hit (Burn: +37). Map ----- +----------------------------------------------------+ | ????????????????????????????????????????????????? | | ????????????????????????????????????????????????? | | ????????????????????????????????????????????????? | | ????????????????????????????????????????????????? | | ????????????????????????????????????????????????? | | ??????????????? ??????????????????????????? | | ??????????????####+###??????????????????????????? | | ??????????????## #??????????????????????????? | | ??????????????## ???????????????????????????? | | ???????????????? ???????????????????????????? | | ???????????????? ???????????????????????????? | | ???????????????# #??????????????????????????? | | ???????########## ##???????????? # ???????????? | | ??????###########k ##??????????? # ???????????? | | ??????##""!"!""## ############ ##???????????? | | ????? ## "!"!" ## ############ # ???????????? | | ?????+## ## # ???????????? | | ????? k # ???????????? | | ????? < + ???????????? | | ????? gg # ???????????? | | ?????+## # # ???????????? | | ????? ######### g ## ???????????? | | ?????""# # "T" *= ##????????????? | | ?????""# # """ %]] % ##????????????? | | ?????T"# %+ g !%= *k ##????????????? | | ?????""# #%! g !@ # ????????????? | | ?????""# == # ########## # ????????????? | | ????? # === ## #### T # # ????????????? | | ????? # === ## #### + # ????????????? | | ????? # ## #### """ # + ????????????? | | ????? # ## T### """ # # ????????????? | | ????? # ## #### """ ### # ????????????? | | ?????### ## #### #?# # ????????????? | | ??????########### ##?########## # ????????????? | | ??????########### ##??#########+##????????????? | | ??????## ### ###### ##????????????? | | ??????## "T" ### ###### """""##????????????? | | ??????## # #### """""##????????????? | | ??????## [ # #### """""##????????????? | | ??????## # [ #### """""##????????????? | | ######## """%+ #### """""##????????????? | | ######## """ # #### """""##????????????? | | ## # """ # #### """""##????????????? | | # # #### ##????????????? | | ###########+############+####????????????? | | ##### ## ########??????? | | ## ##### """ """ ## #??????? | | ####+####### """ """ ## #??????? | | # " """ """ ## #??????? | | # " ## ########??????? | +----------------------------------------------------+ Best States ------------- Heat Dissipation 39 Energy Generation 10 Energy Capacity 250 Matter Stores 300 Matter Capacity 300 Sight Range 16 Terrain Scan Density 10 Evasion (%) 55 Recoil Reduction 2 Item Schematics ----------------- None Robot Schematics ------------------ None Fabricated ------------ Nothing Alien Tech Used ----------------- None Achievements -------------- None Challenges ------------ None Game ------ Seed ArmoredJunkInitializer Manual? 0 Play Time 00:10:13 Cumulative 5.8 hours Start 2025.04.21 @ 17:36:41 End 2025.04.25 @ 21:21:51 Sessions 4 Manual Loads 0 Difficulty Rogue Special Mode None Game No. 7 Rogue 7 Adventurer 0 Explorer 0 Win Type - Total 0 Types 0/0/0/0/0/0/0/0/0 Lore% 3 Gallery% 8 Achievement% 9 Wizard Run 0 Options --------- Layout 1 ASCII 0 Keyboard 1 Movement Numpad Keybinds 0 Fullscreen 1 Font 24/Smallcaps Map View 50x35 Zoom Use 0% Tactical HUD 0 Map Filters NONE Filters NONE Steam 1 RUN: 433fd553-59d3-496c-864c-b91ccf33fa9c